[Event "*** SCC Grand Prix: Titled Tuesday Blitz"]
[Site "Chess.com"]
[Date "2020.07.14"]
[Round "3"]
[White "Korona_91"]
[Black "memer5334"]
[Result "1-0"]
[WhiteElo "2485"]
[BlackElo "2237"]
[TimeControl "180+1"]
[EndTime "10:31:49 PDT"]
[Termination "Korona_91 won by resignation"]

1. e4 {[%clk 0:03:00.9]} 1... b6 {[%clk 0:02:58.1]} 2. d4 {[%clk 0:03:00.1]}
2... Bb7 {[%clk 0:02:57.8]} 3. Bd3 {[%clk 0:02:57.7]} 3... Nf6 {[%clk
0:02:57.5]} 4. Nc3 {[%clk 0:02:54]} 4... Nc6 {[%clk 0:02:56.3]} 5. e5 {[%clk
0:02:43.8]} 5... Ng8 {[%clk 0:02:56.1]} 6. Nf3 {[%clk 0:02:42.3]} 6... e6 {[%clk
0:02:54.5]} 7. O-O {[%clk 0:02:40.9]} 7... d6 {[%clk 0:02:52.1]} 8. Be4 {[%clk
0:02:36.9]} 8... d5 {[%clk 0:02:49.7]} 9. Bd3 {[%clk 0:02:37.1]} 9... a6 {[%clk
0:02:48]} 10. a4 {[%clk 0:02:30]} 10... Nb4 {[%clk 0:02:44.9]} 11. Be2 {[%clk
0:02:29.7]} 11... Be7 {[%clk 0:02:43.5]} 12. Be3 {[%clk 0:02:29.8]} 12... c5
{[%clk 0:02:43.1]} 13. a5 {[%clk 0:02:27.4]} 13... b5 {[%clk 0:02:32.5]} 14. Nb1
{[%clk 0:02:14.7]} 14... c4 {[%clk 0:02:29.3]} 15. c3 {[%clk 0:02:14.3]} 15...
Nc6 {[%clk 0:02:28.8]} 16. b4 {[%clk 0:02:14.2]} 16... cxb3 {[%clk 0:02:26.6]}
17. Qxb3 {[%clk 0:02:13.6]} 17... Nxa5 {[%clk 0:02:27.1]} 18. Qc2 {[%clk
0:02:11]} 18... Nc4 {[%clk 0:02:27.2]} 19. Nbd2 {[%clk 0:02:08.1]} 19... Nxe3
{[%clk 0:02:26.1]} 20. fxe3 {[%clk 0:02:08.6]} 20... Nh6 {[%clk 0:02:24.8]} 21.
Bd3 {[%clk 0:02:04.8]} 21... Ng4 {[%clk 0:02:21.4]} 22. Rae1 {[%clk 0:02:04.1]}
22... Bg5 {[%clk 0:02:21.1]} 23. Nxg5 {[%clk 0:01:58.1]} 23... Qxg5 {[%clk
0:02:22]} 24. Nf3 {[%clk 0:01:58.4]} 24... Qh6 {[%clk 0:02:22.1]} 25. Qe2 {[%clk
0:01:52]} 25... Qh5 {[%clk 0:02:03.2]} 26. h3 {[%clk 0:01:27.2]} 26... Nh6
{[%clk 0:02:01.5]} 27. Qf2 {[%clk 0:01:21.3]} 27... f6 {[%clk 0:01:36.7]} 28.
exf6 {[%clk 0:01:19.8]} 28... O-O {[%clk 0:01:32.1]} 29. fxg7 {[%clk 0:01:18.2]}
29... Rf6 {[%clk 0:01:26.4]} 30. Qg3 {[%clk 0:01:12.2]} 30... Nf5 {[%clk
0:01:22.1]} 31. Bxf5 {[%clk 0:01:11.6]} 31... Rxf5 {[%clk 0:01:20.3]} 32. Qc7
{[%clk 0:01:04.4]} 32... Rf7 {[%clk 0:01:19.2]} 33. Qe5 {[%clk 0:01:04.5]} 33...
Qxe5 {[%clk 0:00:59.9]} 34. Nxe5 {[%clk 0:01:04.7]} 34... Rxg7 {[%clk
0:01:00.6]} 35. Rf6 {[%clk 0:01:03.6]} 35... Re8 {[%clk 0:00:59.3]} 36. Nd3
{[%clk 0:01:00.7]} 36... Bc8 {[%clk 0:00:55.6]} 37. Ne5 {[%clk 0:00:56.5]} 37...
Rc7 {[%clk 0:00:53.5]} 38. Ref1 {[%clk 0:00:53.1]} 38... a5 {[%clk 0:00:43.3]}
39. Nd3 {[%clk 0:00:48.6]} 39... Rxc3 {[%clk 0:00:41.2]} 40. Nc5 {[%clk
0:00:40.8]} 40... Rxe3 {[%clk 0:00:40.6]} 41. Rf7 {[%clk 0:00:39.7]} 41... e5
{[%clk 0:00:35.3]} 42. dxe5 {[%clk 0:00:38.7]} 42... R3xe5 {[%clk 0:00:35.2]}
43. Ra7 {[%clk 0:00:39.2]} 43... Bf5 {[%clk 0:00:28.4]} 44. g4 {[%clk
0:00:37.1]} 44... Be6 {[%clk 0:00:17.1]} 45. Rxa5 {[%clk 0:00:35.9]} 45... b4
{[%clk 0:00:15.5]} 46. Nd3 {[%clk 0:00:34.9]} 46... Re3 {[%clk 0:00:12.4]} 47.
Nf4 {[%clk 0:00:34]} 47... Bf7 {[%clk 0:00:09.8]} 48. Rb5 {[%clk 0:00:31.3]}
48... b3 {[%clk 0:00:10.1]} 49. Kf2 {[%clk 0:00:28.2]} 49... d4 {[%clk
0:00:09.9]} 50. Rd1 {[%clk 0:00:26]} 50... R3e4 {[%clk 0:00:10.3]} 51. Kg3
{[%clk 0:00:25.3]} 51... Re3+ {[%clk 0:00:10.4]} 52. Kh4 {[%clk 0:00:25.3]}
52... Rf3 {[%clk 0:00:09.9]} 53. Rxd4 {[%clk 0:00:22.8]} 53... Ree3 {[%clk
0:00:09.8]} 54. Rd8+ {[%clk 0:00:21.8]} 54... Kg7 {[%clk 0:00:09.8]} 55. Nh5+
{[%clk 0:00:20.7]} 55... Bxh5 {[%clk 0:00:10.3]} 56. Kxh5 {[%clk 0:00:20.7]}
56... Rxh3+ {[%clk 0:00:09.9]} 57. Kg5 {[%clk 0:00:21.2]} 57... Rhf3 {[%clk
0:00:09.9]} 58. Rb7+ {[%clk 0:00:20.2]} 58... Rf7 {[%clk 0:00:09.1]} 59. Rdd7
{[%clk 0:00:20.7]} 59... h6+ {[%clk 0:00:08.9]} 60. Kh4 {[%clk 0:00:20.2]} 60...
Rf3 {[%clk 0:00:08]} 61. Rxf7+ {[%clk 0:00:19.8]} 61... Rxf7 {[%clk 0:00:07.4]}
62. Rxb3 {[%clk 0:00:20.5]} 62... Rf2 {[%clk 0:00:07.1]} 63. Rb7+ {[%clk
0:00:20.6]} 63... Kg6 {[%clk 0:00:07.2]} 64. Rb6+ {[%clk 0:00:21]} 64... Kg7
{[%clk 0:00:05.4]} 65. Rb8 {[%clk 0:00:21.5]} 65... Rg2 {[%clk 0:00:04.7]} 66.
Kh3 {[%clk 0:00:20.9]} 66... Rc2 {[%clk 0:00:04.3]} 67. Rb7+ {[%clk 0:00:21.2]}
67... Kg6 {[%clk 0:00:04.4]} 68. Rb6+ {[%clk 0:00:21.8]} 68... Kh7 {[%clk
0:00:04.6]} 69. Rb5 {[%clk 0:00:22.2]} 69... Rc3+ {[%clk 0:00:03.6]} 70. Kh4
{[%clk 0:00:22.5]} 70... Rc1 {[%clk 0:00:04.5]} 71. Rb7+ {[%clk 0:00:20.7]}
71... Kg6 {[%clk 0:00:05.2]} 72. Rb6+ {[%clk 0:00:21.1]} 72... Kg7 {[%clk
0:00:05.9]} 73. Rb2 {[%clk 0:00:21.2]} 73... Rh1+ {[%clk 0:00:05.4]} 74. Kg3
{[%clk 0:00:21.6]} 74... Ra1 {[%clk 0:00:06.3]} 75. Rb7+ {[%clk 0:00:18.5]}
75... Kg6 {[%clk 0:00:07]} 76. Rb6+ {[%clk 0:00:19]} 76... Kh7 {[%clk
0:00:07.7]} 77. Rb7+ {[%clk 0:00:19.4]} 77... Kg8 {[%clk 0:00:08.3]} 78. Rb3
{[%clk 0:00:19.9]} 78... Ra2 {[%clk 0:00:08.1]} 79. Rf3 {[%clk 0:00:20.2]} 79...
Kg7 {[%clk 0:00:08.6]} 80. Re3 {[%clk 0:00:20.2]} 80... Ra1 {[%clk 0:00:08.5]}
81. Kf4 {[%clk 0:00:20.3]} 81... Kf6 {[%clk 0:00:08.9]} 82. Rh3 {[%clk
0:00:19.6]} 82... Ra4+ {[%clk 0:00:09.3]} 83. Kg3 {[%clk 0:00:19.7]} 83... Kg5
{[%clk 0:00:09.9]} 84. Rh5+ {[%clk 0:00:19.1]} 84... Kg6 {[%clk 0:00:09.9]} 85.
Rb5 {[%clk 0:00:19.6]} 85... Ra3+ {[%clk 0:00:10.2]} 86. Kh4 {[%clk 0:00:19.4]}
86... Ra6 {[%clk 0:00:11]} 87. Rf5 {[%clk 0:00:18.8]} 87... Rd6 {[%clk
0:00:11.3]} 88. Re5 {[%clk 0:00:18.8]} 88... Rf6 {[%clk 0:00:11.4]} 89. Ra5
{[%clk 0:00:19.2]} 89... Rb6 {[%clk 0:00:11.1]} 90. Rc5 {[%clk 0:00:18.9]} 90...
Kg7 {[%clk 0:00:10.7]} 91. Ra5 {[%clk 0:00:18.6]} 91... Rb2 {[%clk 0:00:10]} 92.
Ra7+ {[%clk 0:00:17.6]} 92... Kg6 {[%clk 0:00:10.5]} 93. Ra5 {[%clk 0:00:17.4]}
93... Rh2+ {[%clk 0:00:09.5]} 94. Kg3 {[%clk 0:00:17.8]} 94... Rh1 {[%clk
0:00:10.4]} 95. Ra6+ {[%clk 0:00:17.9]} 95... Kg7 {[%clk 0:00:11.1]} 96. Ra7+
{[%clk 0:00:18.4]} 96... Kf6 {[%clk 0:00:11.4]} 97. Ra6+ {[%clk 0:00:18.7]}
97... Ke5 {[%clk 0:00:12.1]} 98. Ra5+ {[%clk 0:00:18.9]} 98... Kd4 {[%clk
0:00:12.4]} 99. Rh5 {[%clk 0:00:18]} 99... Rg1+ {[%clk 0:00:10.7]} 100. Kf3
{[%clk 0:00:17.5]} 100... Rf1+ {[%clk 0:00:10.7]} 101. Kg2 {[%clk 0:00:17.7]}
101... Rf6 {[%clk 0:00:11.1]} 102. Kg3 {[%clk 0:00:17.5]} 102... Ke4 {[%clk
0:00:11.3]} 103. Ra5 {[%clk 0:00:17.7]} 103... Rg6 {[%clk 0:00:10.9]} 104. Ra8
{[%clk 0:00:17.5]} 104... h5 {[%clk 0:00:10.5]} 105. Re8+ {[%clk 0:00:17]}
105... Kd4 {[%clk 0:00:10.6]} 106. Kh3 {[%clk 0:00:16.2]} 106... hxg4+ {[%clk
0:00:10.9]} 107. Kg3 {[%clk 0:00:15.4]} 107... Kd5 {[%clk 0:00:11.5]} 108. Re1
{[%clk 0:00:14.4]} 108... Kd4 {[%clk 0:00:10.7]} 109. Re2 {[%clk 0:00:14.7]}
109... Kd3 {[%clk 0:00:10.9]} 110. Re1 {[%clk 0:00:15.1]} 110... Kd4 {[%clk
0:00:10.9]} 111. Re2 {[%clk 0:00:14.8]} 111... Kd5 {[%clk 0:00:10.9]} 112. Re1
{[%clk 0:00:15.1]} 112... Rg8 {[%clk 0:00:11.3]} 113. Re2 {[%clk 0:00:15.4]}
113... Kd4 {[%clk 0:00:11.4]} 114. Re1 {[%clk 0:00:15.8]} 114... Kd3 {[%clk
0:00:10.9]} 115. Re7 {[%clk 0:00:16.2]} 115... Re8 {[%clk 0:00:11.8]} 116. Rxe8
{[%clk 0:00:16.2]} 1-0

[Event "*** SCC Grand Prix: Titled Tuesday Blitz"]
[Site "Chess.com"]
[Date "2020.07.14"]
[Round "4"]
[White "SamuelGhimpu2003"]
[Black "jaskol95"]
[Result "1-0"]
[WhiteElo "2604"]
[BlackElo "2405"]
[TimeControl "180+1"]
[EndTime "10:34:21 PDT"]
[Termination "SamuelGhimpu2003 won by resignation"]

1. d4 {[%clk 0:03:00.9]} 1... Nf6 {[%clk 0:02:58]} 2. c4 {[%clk 0:03:00.4]} 2...
g6 {[%clk 0:02:58.6]} 3. Nc3 {[%clk 0:02:59.8]} 3... d5 {[%clk 0:02:59.1]} 4.
cxd5 {[%clk 0:02:59.5]} 4... Nxd5 {[%clk 0:03:00]} 5. e4 {[%clk 0:02:59.9]} 5...
Nxc3 {[%clk 0:03:00.5]} 6. bxc3 {[%clk 0:03:00.8]} 6... Bg7 {[%clk 0:03:01.1]}
7. Nf3 {[%clk 0:03:00.9]} 7... O-O {[%clk 0:03:01.8]} 8. Be3 {[%clk 0:03:01.6]}
8... c5 {[%clk 0:03:02]} 9. Qd2 {[%clk 0:03:01.7]} 9... Nc6 {[%clk 0:03:01.6]}
10. d5 {[%clk 0:02:58.3]} 10... Ne5 {[%clk 0:03:00.6]} 11. Nxe5 {[%clk 0:02:57]}
11... Bxe5 {[%clk 0:03:01.5]} 12. Bxc5 {[%clk 0:02:51]} 12... b6 {[%clk
0:02:57.1]} 13. Bd4 {[%clk 0:02:50.4]} 13... Bxd4 {[%clk 0:02:56.4]} 14. Qxd4
{[%clk 0:02:51.3]} 14... e6 {[%clk 0:02:56.9]} 15. d6 {[%clk 0:02:45.1]} 15...
Bb7 {[%clk 0:02:52.7]} 16. e5 {[%clk 0:02:43.8]} 16... f6 {[%clk 0:02:53.1]} 17.
Bc4 {[%clk 0:02:40.6]} 17... Qd7 {[%clk 0:02:47.1]} 18. O-O {[%clk 0:02:38.8]}
18... fxe5 {[%clk 0:02:45.2]} 19. Qxe5 {[%clk 0:02:39.7]} 19... Rae8 {[%clk
0:02:43.2]} 20. Rfe1 {[%clk 0:02:35.7]} 20... Qc6 {[%clk 0:02:31]} 21. Bxe6+
{[%clk 0:02:32.5]} 21... Rxe6 {[%clk 0:02:30.7]} 22. Qxe6+ {[%clk 0:02:33.4]}
22... Kg7 {[%clk 0:02:31.3]} 23. f3 {[%clk 0:02:26.8]} 23... Qxc3 {[%clk
0:02:27.2]} 24. Qe5+ {[%clk 0:02:24.7]} 1-0

[Event "*** SCC Grand Prix: Titled Tuesday Blitz"]
[Site "Chess.com"]
[Date "2020.07.14"]
[Round "4"]
[White "GMHess"]
[Black "Kildepiotr"]
[Result "1-0"]
[WhiteElo "2754"]
[BlackElo "2590"]
[TimeControl "180+1"]
[EndTime "10:34:22 PDT"]
[Termination "GMHess won by resignation"]

1. b3 {[%clk 0:02:52.8]} 1... d5 {[%clk 0:02:53.5]} 2. Bb2 {[%clk 0:02:46.4]}
2... c5 {[%clk 0:02:53.3]} 3. Nf3 {[%clk 0:02:43.2]} 3... f6 {[%clk 0:02:52.8]}
4. d3 {[%clk 0:02:37.6]} 4... e5 {[%clk 0:02:52.5]} 5. Nbd2 {[%clk 0:02:38.3]}
5... Nc6 {[%clk 0:02:52.1]} 6. e4 {[%clk 0:02:38]} 6... d4 {[%clk 0:02:51]} 7.
Nh4 {[%clk 0:02:35.5]} 7... g6 {[%clk 0:02:45.9]} 8. g3 {[%clk 0:02:35.2]} 8...
Bh6 {[%clk 0:02:43.4]} 9. Nc4 {[%clk 0:02:28.1]} 9... b5 {[%clk 0:02:40.1]} 10.
Nd2 {[%clk 0:02:28.2]} 10... Be6 {[%clk 0:02:38.4]} 11. Bg2 {[%clk 0:02:22]}
11... Nge7 {[%clk 0:02:38]} 12. O-O {[%clk 0:02:21.4]} 12... O-O {[%clk
0:02:34.3]} 13. Bc1 {[%clk 0:02:19.8]} 13... Qc7 {[%clk 0:02:28.6]} 14. Nb1
{[%clk 0:02:03.1]} 14... c4 {[%clk 0:02:26.2]} 15. Bxh6 {[%clk 0:02:01.8]} 1-0

[Event "*** SCC Grand Prix: Titled Tuesday Blitz"]
[Site "Chess.com"]
[Date "2020.07.14"]
[Round "4"]
[White "Tolya2"]
[Black "GothamChess"]
[Result "0-1"]
[WhiteElo "2397"]
[BlackElo "2601"]
[TimeControl "180+1"]
[EndTime "10:34:43 PDT"]
[Termination "GothamChess won by resignation"]

1. Nf3 {[%clk 0:03:00.9]} 1... f5 {[%clk 0:02:59.2]} 2. d4 {[%clk 0:03:00.2]}
2... Nf6 {[%clk 0:02:59.6]} 3. g3 {[%clk 0:02:59.9]} 3... g6 {[%clk 0:03:00]} 4.
b4 {[%clk 0:02:58.5]} 4... Bg7 {[%clk 0:03:00.9]} 5. Bb2 {[%clk 0:02:58.5]} 5...
O-O {[%clk 0:03:01]} 6. Nbd2 {[%clk 0:02:58.5]} 6... a5 {[%clk 0:03:01.2]} 7. b5
{[%clk 0:02:57.9]} 7... a4 {[%clk 0:03:02.1]} 8. a3 {[%clk 0:02:57.5]} 8... d6
{[%clk 0:03:01.1]} 9. c4 {[%clk 0:02:57.4]} 9... e6 {[%clk 0:02:59]} 10. Qc2
{[%clk 0:02:57]} 10... Qe7 {[%clk 0:02:57.2]} 11. Bg2 {[%clk 0:02:56.6]} 11...
b6 {[%clk 0:02:56.7]} 12. Ng5 {[%clk 0:02:52.4]} 12... Ra7 {[%clk 0:02:55.1]}
13. e4 {[%clk 0:02:51.3]} 13... h6 {[%clk 0:02:52.3]} 14. Ngf3 {[%clk
0:02:47.9]} 14... Bb7 {[%clk 0:02:45.8]} 15. d5 {[%clk 0:02:44.7]} 15... exd5
{[%clk 0:02:42.7]} 16. cxd5 {[%clk 0:02:41.6]} 16... Bxd5 {[%clk 0:02:39.8]} 17.
O-O {[%clk 0:02:36.3]} 17... Nxe4 {[%clk 0:02:37.3]} 18. Bxg7 {[%clk 0:02:32.8]}
18... Qxg7 {[%clk 0:02:38.2]} 19. Nc4 {[%clk 0:02:22.6]} 19... Nd7 {[%clk
0:02:32.9]} 20. Ne3 {[%clk 0:02:21.6]} 20... Ba8 {[%clk 0:02:29.1]} 21. Rfd1
{[%clk 0:02:18.1]} 21... Ndc5 {[%clk 0:02:29]} 22. Nd5 {[%clk 0:02:17.1]} 22...
Bxd5 {[%clk 0:02:24.6]} 23. Rxd5 {[%clk 0:02:15.3]} 23... Qxa1+ {[%clk
0:02:24.5]} 0-1

[Event "*** SCC Grand Prix: Titled Tuesday Blitz"]
[Site "Chess.com"]
[Date "2020.07.14"]
[Round "4"]
[White "Alopekos"]
[Black "pedro_nascimento85"]
[Result "1-0"]
[WhiteElo "2349"]
[BlackElo "1946"]
[TimeControl "180+1"]
[EndTime "10:34:56 PDT"]
[Termination "Alopekos won by resignation"]

1. e4 {[%clk 0:03:00.9]} 1... e6 {[%clk 0:02:58.2]} 2. d4 {[%clk 0:03:01]} 2...
d5 {[%clk 0:02:57.9]} 3. Nc3 {[%clk 0:03:01.6]} 3... Bb4 {[%clk 0:02:57.1]} 4.
e5 {[%clk 0:03:01.7]} 4... c5 {[%clk 0:02:56.8]} 5. a3 {[%clk 0:03:02.4]} 5...
Bxc3+ {[%clk 0:02:56.3]} 6. bxc3 {[%clk 0:03:03.3]} 6... Ne7 {[%clk 0:02:56.7]}
7. Qg4 {[%clk 0:03:03.9]} 7... O-O {[%clk 0:02:51.6]} 8. Nf3 {[%clk 0:03:03.5]}
8... f5 {[%clk 0:02:49.4]} 9. exf6 {[%clk 0:02:58.4]} 9... Rxf6 {[%clk
0:02:48.9]} 10. Bg5 {[%clk 0:02:58.5]} 10... Rf7 {[%clk 0:02:48.5]} 11. Ne5
{[%clk 0:02:56.1]} 11... Rf8 {[%clk 0:02:07.1]} 12. Qh4 {[%clk 0:02:54.9]} 12...
Nbc6 {[%clk 0:02:07.3]} 13. Nxc6 {[%clk 0:02:34.1]} 13... bxc6 {[%clk
0:01:58.8]} 14. Bxe7 {[%clk 0:02:34.2]} 14... Qa5 {[%clk 0:01:59.4]} 15. Qg3
{[%clk 0:02:25]} 15... Rf7 {[%clk 0:01:58.3]} 16. Bxc5 {[%clk 0:02:23.8]} 1-0

[Event "*** SCC Grand Prix: Titled Tuesday Blitz"]
[Site "Chess.com"]
[Date "2020.07.14"]
[Round "4"]
[White "Malysch"]
[Black "MacDaddyMac"]
[Result "0-1"]
[WhiteElo "2440"]
[BlackElo "2315"]
[TimeControl "180+1"]
[EndTime "10:35:06 PDT"]
[Termination "MacDaddyMac won by resignation"]

1. d4 {[%clk 0:02:40]} 1... Nf6 {[%clk 0:02:58.6]} 2. c4 {[%clk 0:02:40.9]} 2...
e6 {[%clk 0:02:58.5]} 3. g3 {[%clk 0:02:40.9]} 3... Bb4+ {[%clk 0:02:57.4]} 4.
Nd2 {[%clk 0:02:39.9]} 4... c5 {[%clk 0:02:55.3]} 5. a3 {[%clk 0:02:40.1]} 5...
Bxd2+ {[%clk 0:02:55]} 6. Qxd2 {[%clk 0:02:41]} 6... cxd4 {[%clk 0:02:55.7]} 7.
Nf3 {[%clk 0:02:40.9]} 7... Nc6 {[%clk 0:02:54.6]} 8. Nxd4 {[%clk 0:02:40.6]}
8... O-O {[%clk 0:02:54.8]} 9. Bg2 {[%clk 0:02:40.6]} 9... e5 {[%clk 0:02:54]}
10. Nb5 {[%clk 0:02:37.5]} 10... a6 {[%clk 0:02:41.4]} 11. Nd6 {[%clk
0:02:33.8]} 11... Nd4 {[%clk 0:02:41.3]} 12. Qc3 {[%clk 0:02:20.2]} 12... Qc7
{[%clk 0:02:33.6]} 13. c5 {[%clk 0:02:10.1]} 13... Rb8 {[%clk 0:02:22.5]} 14. e3
{[%clk 0:02:09.1]} 14... Ne6 {[%clk 0:02:04.8]} 15. Qd4 {[%clk 0:01:57.6]} 15...
exd4 {[%clk 0:02:04]} 0-1

[Event "*** SCC Grand Prix: Titled Tuesday Blitz"]
[Site "Chess.com"]
[Date "2020.07.14"]
[Round "4"]
[White "Haykoooo0o"]
[Black "Zhuu96"]
[Result "0-1"]
[WhiteElo "2522"]
[BlackElo "2833"]
[TimeControl "180+1"]
[EndTime "10:35:14 PDT"]
[Termination "Zhuu96 won by resignation"]

1. d4 {[%clk 0:03:00.9]} 1... Nf6 {[%clk 0:02:58.7]} 2. c4 {[%clk 0:02:58.9]}
2... g6 {[%clk 0:02:58.9]} 3. Nc3 {[%clk 0:02:58.9]} 3... Bg7 {[%clk 0:02:56.3]}
4. e4 {[%clk 0:02:58.8]} 4... O-O {[%clk 0:02:52.9]} 5. f4 {[%clk 0:02:59.3]}
5... a6 {[%clk 0:02:51.4]} 6. e5 {[%clk 0:02:55.8]} 6... Ne8 {[%clk 0:02:51]} 7.
Nf3 {[%clk 0:02:56]} 7... d6 {[%clk 0:02:51.3]} 8. Be2 {[%clk 0:02:52.2]} 8...
Nd7 {[%clk 0:02:44.8]} 9. O-O {[%clk 0:02:50.8]} 9... c5 {[%clk 0:02:44.8]} 10.
d5 {[%clk 0:02:12.5]} 10... dxe5 {[%clk 0:02:43.8]} 11. fxe5 {[%clk 0:02:12.3]}
11... Nxe5 {[%clk 0:02:42.3]} 12. Nxe5 {[%clk 0:02:10.5]} 12... Bxe5 {[%clk
0:02:41.5]} 13. Bh6 {[%clk 0:02:10.8]} 13... Ng7 {[%clk 0:02:32.7]} 14. Qd2
{[%clk 0:01:52.4]} 14... Qc7 {[%clk 0:02:30.4]} 15. h3 {[%clk 0:01:43.1]} 15...
Nf5 {[%clk 0:02:16.9]} 16. Bxf8 {[%clk 0:01:39.5]} 16... Bh2+ {[%clk 0:02:15.4]}
17. Kh1 {[%clk 0:01:36.6]} 17... Ng3+ {[%clk 0:02:15.3]} 18. Kxh2 {[%clk
0:01:36.9]} 18... Nxf1+ {[%clk 0:02:14.8]} 0-1

[Event "*** SCC Grand Prix: Titled Tuesday Blitz"]
[Site "Chess.com"]
[Date "2020.07.14"]
[Round "4"]
[White "Agibileg"]
[Black "ItsCheckM8Mate"]
[Result "0-1"]
[WhiteElo "2419"]
[BlackElo "2266"]
[TimeControl "180+1"]
[EndTime "10:35:23 PDT"]
[Termination "ItsCheckM8Mate won by resignation"]

1. d4 {[%clk 0:03:00.9]} 1... Nf6 {[%clk 0:02:59.5]} 2. c4 {[%clk 0:02:59.6]}
2... c5 {[%clk 0:02:59.8]} 3. d5 {[%clk 0:02:59.2]} 3... b5 {[%clk 0:02:57.1]}
4. cxb5 {[%clk 0:03:00.1]} 4... a6 {[%clk 0:02:57.2]} 5. b6 {[%clk 0:03:00.6]}
5... e6 {[%clk 0:02:56.3]} 6. dxe6 {[%clk 0:02:59.3]} 6... fxe6 {[%clk
0:02:54.3]} 7. Nc3 {[%clk 0:02:59.8]} 7... d5 {[%clk 0:02:48.7]} 8. e4 {[%clk
0:03:00.3]} 8... d4 {[%clk 0:02:43.5]} 9. e5 {[%clk 0:02:55.9]} 9... Nd5 {[%clk
0:02:35.7]} 10. Nxd5 {[%clk 0:02:53.3]} 10... Qxd5 {[%clk 0:02:34.2]} 11. Nf3
{[%clk 0:02:53.8]} 11... Be7 {[%clk 0:02:31.4]} 12. Bd3 {[%clk 0:02:51.6]} 12...
O-O {[%clk 0:02:24.1]} 13. O-O {[%clk 0:02:50.8]} 13... Bb7 {[%clk 0:02:19.1]}
14. b3 {[%clk 0:02:46.9]} 14... Nd7 {[%clk 0:02:17.5]} 15. Bc4 {[%clk
0:02:46.1]} 15... Qc6 {[%clk 0:02:16.8]} 16. Bb2 {[%clk 0:02:41.4]} 16... Nxe5
{[%clk 0:02:11.2]} 17. Rc1 {[%clk 0:02:25.8]} 17... Nxf3+ {[%clk 0:01:48.7]} 18.
gxf3 {[%clk 0:02:25.3]} 18... Rxf3 {[%clk 0:01:48.7]} 19. Qe2 {[%clk 0:02:25.9]}
19... Re3 {[%clk 0:01:26.6]} 0-1

[Event "*** SCC Grand Prix: Titled Tuesday Blitz"]
[Site "Chess.com"]
[Date "2020.07.14"]
[Round "4"]
[White "tk22h"]
[Black "Alberquintin"]
[Result "1/2-1/2"]
[WhiteElo "2299"]
[BlackElo "2420"]
[TimeControl "180+1"]
[EndTime "10:35:31 PDT"]
[Termination "Game drawn by agreement"]

1. c4 {[%clk 0:03:00.9]} 1... Nf6 {[%clk 0:02:59.3]} 2. Nc3 {[%clk 0:03:00.2]}
2... g6 {[%clk 0:02:58.5]} 3. Nf3 {[%clk 0:02:58.9]} 3... d6 {[%clk 0:02:58.8]}
4. g3 {[%clk 0:02:58.8]} 4... Bg7 {[%clk 0:02:59.3]} 5. d4 {[%clk 0:02:58.3]}
5... O-O {[%clk 0:02:59.7]} 6. Bg2 {[%clk 0:02:58.5]} 6... Nc6 {[%clk
0:03:00.3]} 7. O-O {[%clk 0:02:58.4]} 7... a6 {[%clk 0:03:00.8]} 8. b3 {[%clk
0:02:58.1]} 8... Rb8 {[%clk 0:03:00.4]} 9. Bb2 {[%clk 0:02:58.1]} 9... b5 {[%clk
0:03:01]} 10. cxb5 {[%clk 0:02:58]} 10... axb5 {[%clk 0:03:01.9]} 11. Rc1 {[%clk
0:02:57.9]} 11... b4 {[%clk 0:03:00.6]} 12. Na4 {[%clk 0:02:57.5]} 12... Na7
{[%clk 0:02:59.8]} 13. Re1 {[%clk 0:02:54.4]} 13... Bb7 {[%clk 0:02:57.9]} 14.
Qd2 {[%clk 0:02:50.5]} 14... Qd7 {[%clk 0:02:45.1]} 15. Ng5 {[%clk 0:02:44]}
15... Bxg2 {[%clk 0:02:41.1]} 16. Kxg2 {[%clk 0:02:44.9]} 16... h6 {[%clk
0:02:40.4]} 17. Nf3 {[%clk 0:02:43.8]} 17... Nd5 {[%clk 0:02:31.2]} 18. e4
{[%clk 0:02:40.9]} 18... Nb6 {[%clk 0:02:29.7]} 19. Nxb6 {[%clk 0:02:40.3]}
19... Rxb6 {[%clk 0:02:30.6]} 20. d5 {[%clk 0:02:38.6]} 20... c5 {[%clk
0:02:27.4]} 21. dxc6 {[%clk 0:02:37.8]} 21... Nxc6 {[%clk 0:02:24.9]} 22. Bxg7
{[%clk 0:02:36.9]} 22... Kxg7 {[%clk 0:02:25.8]} 23. Rc4 {[%clk 0:02:36.4]}
23... Qb7 {[%clk 0:02:19.5]} 24. Rec1 {[%clk 0:02:29]} 24... Ne5 {[%clk
0:02:16.8]} 25. Nxe5 {[%clk 0:02:26.9]} 25... dxe5 {[%clk 0:02:17.7]} 26. Qd5
{[%clk 0:02:26]} 26... Qxd5 {[%clk 0:02:15.7]} 27. exd5 {[%clk 0:02:26]} 27...
Rd8 {[%clk 0:02:16.3]} 28. Rc5 {[%clk 0:02:25]} 28... Ra6 {[%clk 0:02:10.6]} 29.
R1c2 {[%clk 0:02:24.6]} 29... Rda8 {[%clk 0:02:10.4]} 30. Re2 {[%clk 0:02:22.3]}
30... Rxa2 {[%clk 0:02:06.3]} 31. Rxe5 {[%clk 0:02:22.1]} 31... Rb2 {[%clk
0:02:03.2]} 32. Re3 {[%clk 0:02:17.3]} 32... Raa2 {[%clk 0:02:03.2]} 33. Rf3
{[%clk 0:02:16]} 33... Ra3 {[%clk 0:02:00.9]} 34. Rc7 {[%clk 0:02:15.1]} 34...
Raxb3 {[%clk 0:02:01]} 35. Rxb3 {[%clk 0:02:14.5]} 35... Rxb3 {[%clk 0:02:01.1]}
36. Rxe7 {[%clk 0:02:14.9]} 36... Rd3 {[%clk 0:02:01.3]} 37. Rb7 {[%clk
0:02:14.3]} 1/2-1/2

[Event "*** SCC Grand Prix: Titled Tuesday Blitz"]
[Site "Chess.com"]
[Date "2020.07.14"]
[Round "4"]
[White "Bodnar_Mykola"]
[Black "GMKrikor"]
[Result "0-1"]
[WhiteElo "2482"]
[BlackElo "2695"]
[TimeControl "180+1"]
[EndTime "10:35:40 PDT"]
[Termination "GMKrikor won by resignation"]

1. e4 {[%clk 0:03:00.9]} 1... g6 {[%clk 0:02:58.8]} 2. d4 {[%clk 0:03:00.6]}
2... Bg7 {[%clk 0:02:58.6]} 3. Nc3 {[%clk 0:03:01.2]} 3... d6 {[%clk 0:02:57.9]}
4. f4 {[%clk 0:03:01.8]} 4... a6 {[%clk 0:02:56.1]} 5. Nf3 {[%clk 0:03:00.9]}
5... b5 {[%clk 0:02:55.4]} 6. e5 {[%clk 0:03:01.4]} 6... Nh6 {[%clk 0:02:45.9]}
7. Bd3 {[%clk 0:02:57.7]} 7... O-O {[%clk 0:02:40.9]} 8. O-O {[%clk 0:02:55.4]}
8... Nd7 {[%clk 0:02:14.4]} 9. f5 {[%clk 0:02:37.9]} 9... Nxf5 {[%clk
0:02:08.2]} 10. Bxf5 {[%clk 0:02:37.4]} 10... gxf5 {[%clk 0:02:09.1]} 11. Ng5
{[%clk 0:01:56.6]} 11... dxe5 {[%clk 0:01:47.5]} 12. Qh5 {[%clk 0:01:29.1]}
12... Nf6 {[%clk 0:01:45.1]} 13. Qh4 {[%clk 0:01:27.6]} 13... Qxd4+ {[%clk
0:01:44.8]} 14. Qxd4 {[%clk 0:01:23.4]} 14... exd4 {[%clk 0:01:45.7]} 0-1